[Event "WSTCC-65 2024"]
[Site "Krakow"]
[Date "2024.07.06"]
[Round "5.8"]
[White "Algars, Olle"]
[Black "Schulz, Michael"]
[Result "0-1"]
[ECO "A20"]
[WhiteElo "1883"]
[BlackElo "2109"]
[Annotator "RC"]
[PlyCount "78"]
[EventDate "2024.07.01"]
[EventType "team-tourn"]
[EventCountry "POL"]
[SourceTitle "playchess.com"]
[Source "ChessBase"]
[SourceQuality "1"]
[TimeControl "40/5400+30:1800+30"]

1. c4 {[%emt 0:00:04]} e5 {[%emt 0:00:06]} 2. Nf3 {[%emt 0:00:15]} e4 {[%emt 0:01:17]} 3. Nd4 {[%emt 0:00:16]} c5 {[%emt 0:01:28]} 4. Nc2 {[%emt 0:01:10]} Nc6 {[%emt 0:02:13]} 5. Nc3 {[%emt 0:00:14]} Nf6 {[%emt 0:01:47]} 6. g3 {[%emt 0:01:31]} Bd6 {[%emt 0:13:28]} 7. Bg2 {[%emt 0:00:13]} Qe7 {[%emt 0:00:10]} 8. Ne3 {[%emt 0:00:37]} g6 {[%emt 0:00:23]} 9. Qc2 {[%emt 0:01:20]} Nd4 {[%emt 0:03:38]} 10. Qb1 {[%emt 0:00:16]} O-O {[%emt 0:02:07]} 11. Nxe4 {[%emt 0:00:13]} Nxe4 {[%emt 0:01:17]} 12. Qxe4 {[%emt 0:00:48]} Qxe4 {[%emt 0:04:52]} 13. Bxe4 {[%emt 0:00:22]} f5 {[%emt 0:00:14]} 14. Bd5+ {[%emt 0:05:11]} Kg7 {[%emt 0:00:32]} 15. f4 {[%emt 0:00:13]} Rb8 {[%emt 0:02:01]} 16. b3 {[%emt 0:00:32]} Be7 {[%emt 0:02:13]} 17. Rb1 {[%emt 0:02:48]} Bf6 {[%emt 0:01:07]} 18. Bb2 {[%emt 0:01:44]} Re8 {[%emt 0:00:27]} 19. Kd1 {[%emt 0:09:02]} a6 {[%emt 0:01:20]} 20. Re1 {[%emt 0:02:58]} b5 {[%emt 0:02:42]} 21. g4 {[%emt 0:03:18]} Ne6 {[%emt 0:06:01]} 22. Bxf6+ {[%emt 0:01:17]} Kxf6 {[%emt 0:00:05]} 23. g5+ {[%emt 0:00:08]} Kg7 {[%emt 0:01:08]} 24. Rf1 {[%emt 0:01:12]} Nd4 {[%emt 0:01:22]} 25. Rf2 {[%emt 0:00:33]} Bb7 {[%emt 0:08:46]} 26. Rc1 {[%emt 0:01:15]} d6 {[%emt 0:00:16]} 27. Bxb7 {[%emt 0:00:45]} Rxb7 {[%emt 0:02:05]} 28. Nd5 {[%emt 0:00:11]} h6 {[%emt 0:02:55]} 29. gxh6+ {[%emt 0:06:12]} Kf7 {[%emt 0:01:35]} 30. Rc3 {[%emt 0:00:52]} Rh8 {[%emt 0:00:13]} 31. Rh3 {[%emt 0:00:30]} bxc4 {[%emt 0:00:16]} 32. e3 cxb3 33. axb3 {[%emt 0:02:18]} Rxb3 {[%emt 0:01:42]} 34. Nc3 {[%emt 0:00:41]} Nb5 {[%emt 0:06:08]} 35. Kc2 {[%emt 0:00:21]} c4 {[%emt 0:00:35]} 36. Nd5 {[%emt 0:02:43]} Na3+ {[%emt 0:01:09]} 37. Kd1 Rd3 38. Nb6 {[%emt 0:04:47]} c3 {[%emt 0:05:41]} 39. Kc1 {[%emt 0:11:07]} c2 {[%emt 0:00:45]} 0-1

[Event "WSTCC-65 2024"]
[Site "Krakow"]
[Date "2024.07.06"]
[Round "5.9"]
[White "Binham, Timothy F."]
[Black "Ftacnik, Lubomir"]
[Result "0-1"]
[ECO "B22"]
[WhiteElo "2276"]
[BlackElo "2452"]
[Annotator "TA"]
[PlyCount "58"]
[EventDate "2024.07.01"]
[EventType "team-tourn"]
[EventCountry "POL"]
[SourceTitle "playchess.com"]
[Source "ChessBase"]
[SourceQuality "1"]
[TimeControl "40/5400+30:1800+30"]

{[%evp 21,58,20,14,20,14,0,0,0,0,-33,-23,-35,-43,-38,-34,-32,-47,-81,-65,-113,-108,-116,-116,-116,-130,-115,-106,-102,-104,-161,-177,-177,-172,-715,-744,-752,-739,-710,-702]} 1. e4 {[%emt 0:00:13]} c5 {[%emt 0:00:07]} 2. c3 {[%emt 0:00:17]} Nf6 {[%emt 0:00:21]} 3. e5 {[%emt 0:00:07]} Nd5 {[%emt 0:00:05]} 4. Nf3 {[%emt 0:00:25]} Nc6 {[%emt 0:04:30]} 5. d4 {[%emt 0:03:20]} cxd4 {[%emt 0:01:35]} 6. Bc4 {[%emt 0:01:04]} Nb6 {[%emt 0:01:34]} 7. Bb3 {[%emt 0:01:35]} d5 {[%emt 0:00:55]} 8. exd6 {[%emt 0:00:09]} e6 {[%emt 0:09:00]} 9. cxd4 {[%emt 0:04:31]} Bxd6 {[%emt 0:04:36]} 10. Nc3 {[%emt 0:00:45]} O-O {[%emt 0:01:19]} 11. O-O {[%emt 0:00:22]} Be7 {[%emt 0:01:11]} 12. Be3 {[%emt 0:28:50]} Bd7 {[%emt 0:07:12]} 13. a3 {[%emt 0:03:44]} Na5 {[%emt 0:05:02]} 14. Bc2 {[%emt 0:01:54] The position is equal.} Nac4 {[%emt 0:00:47][%cal Oa8c8]} 15. Qd3 {[%emt 0:06:55][%csl Gc2][%cal Rd3h7] [#]} g6 $1 {[%emt 0:00:20]} 16. Bc1 {[%emt 0:01:56]} Rc8 {[%emt 0:01:33]} 17. b3 {[%emt 0:10:59]} Nd6 {[%emt 0:00:46]} 18. Bb2 {[%emt 0:00:44]} Nd5 {[%emt 0:05:08]} 19. Rfc1 {[%emt 0:04:02]} Bc6 {[%emt 0:14:14] Threatens to win with ...Nxc3. Black is more active.} 20. Ne5 {[%emt 0:07:38]} (20. Nxd5 $15 Bxd5 21. Bd1) 20... Bg5 $17 {[%emt 0:02:05] [#] Hoping for ...Nxc3.} 21. Nxc6 {[%emt 0:02:10]} Rxc6 {[%emt 0:00:28]} 22. Rd1 {[%emt 0:01:27]} Nxc3 {[%emt 0:12:14]} 23. Bxc3 {[%emt 0:00:02]} Qc8 {[%emt 0:04:35]} 24. Bb4 {[%emt 0:00:08][%cal Od3g3]} Rd8 {[%emt 0:00:35]} 25. Ra2 {[%emt 0:03:51]} (25. Qg3 $17 {was worth a try.}) 25... Nf5 $19 {[%emt 0:01:30]} 26. Qe4 {[%emt 0:01:55]} Bf6 {[%emt 0:01:12][%cal Rf5d4]} 27. Bb1 $2 {[%emt 0:01:54]} (27. d5 Rxd5 28. Rxd5 exd5 29. Qd3) 27... Rxd4 {[%emt 0:07:43] Black is clearly winning.} ({Less strong is} 27... Bxd4 28. Rad2 $17) 28. Rxd4 {[%emt 0:01:11]} Rc1+ {[%emt 0:00:10]} (28... Bxd4 $2 29. Rc2 $17) 29. Be1 {[%emt 0:00:05]} Nxd4 {[%emt 0:00:32] Weighted Error Value: White=0.49/Black=0.01 (flawless) .  Mistake:       	White=3     	---        Inaccurate:     	White=2     	---        OK:         	White=4     	Black=9      Best:        	---       	Black=1      Strong:       	---       	Black=1} 0-1

[Event "WSTCC-65 2024"]
[Site "Krakow"]
[Date "2024.07.06"]
[Round "5.9"]
[White "Rewitz, Jan"]
[Black "Shilov, Sergej"]
[Result "0-1"]
[ECO "B07"]
[WhiteElo "2089"]
[BlackElo "2143"]
[Annotator "RC"]
[PlyCount "100"]
[EventDate "2024.07.01"]
[EventType "team-tourn"]
[EventCountry "POL"]
[SourceTitle "playchess.com"]
[Source "ChessBase"]
[SourceQuality "1"]
[TimeControl "40/5400+30:1800+30"]

1. d4 {[%emt 0:00:03]} d6 {[%emt 0:00:39]} 2. e4 {[%emt 0:01:46]} Nf6 {[%emt 0:00:39]} 3. Nc3 {[%emt 0:00:57]} c6 {[%emt 0:00:46]} 4. a4 {[%emt 0:03:06]} g6 {[%emt 0:03:24]} 5. f3 {[%emt 0:02:21]} Bg7 {[%emt 0:02:14]} 6. Be3 {[%emt 0:03:52]} Nbd7 {[%emt 0:01:09]} 7. Qd2 {[%emt 0:00:54]} Qa5 {[%emt 0:02:00]} 8. Nge2 {[%emt 0:06:05]} b5 {[%emt 0:06:47]} 9. Nc1 {[%emt 0:01:57]} b4 {[%emt 0:00:34]} 10. Nd1 {[%emt 0:00:29]} Rb8 {[%emt 0:02:26]} 11. Nb3 {[%emt 0:27:14]} Qc7 {[%emt 0:01:01]} 12. Bh6 {[%emt 0:02:05]} O-O {[%emt 0:08:28]} 13. Be2 {[%emt 0:03:57]} e5 {[%emt 0:01:02]} 14. Bxg7 {[%emt 0:02:10]} Kxg7 {[%emt 0:00:10]} 15. Ne3 {[%emt 0:01:26]} Re8 {[%emt 0:07:27]} 16. O-O {[%emt 0:00:43]} d5 {[%emt 0:05:04]} 17. dxe5 {[%emt 0:07:38]} Qxe5 {[%emt 0:00:44]} 18. Rf2 {[%emt 0:05:40]} Bb7 {[%emt 0:07:07]} 19. Raf1 {[%emt 0:04:02]} h5 {[%emt 0:03:37]} 20. Qxb4 {[%emt 0:03:43]} Qxb2 {[%emt 0:01:29]} 21. Qd2 {[%emt 0:02:03]} Qe5 {[%emt 0:02:10]} 22. a5 {[%emt 0:00:37]} Ba8 {[%emt 0:10:23]} 23. a6 {[%emt 0:01:14]} c5 {[%emt 0:03:40]} 24. Nxd5 {[%emt 0:00:52]} Nxd5 {[%emt 0:02:20]} 25. exd5 {[%emt 0:00:08]} Qxd5 {[%emt 0:02:10]} 26. Qc3+ {[%emt 0:01:12]} Qe5 {[%emt 0:00:47]} 27. Qa5 {[%emt 0:02:04]} Re7 {[%emt 0:07:22]} 28. Bd3 {[%emt 0:02:44]} Qd6 {[%emt 0:01:54]} 29. Nd2 {[%emt 0:01:38]} Ne5 {[%emt 0:02:11]} 30. Qc3 {[%emt 0:02:17]} Qd4 {[%emt 0:00:33]} 31. Qxd4 {[%emt 0:01:31]} cxd4 {[%emt 0:00:01]} 32. Be4 {[%emt 0:00:30]} Bxe4 {[%emt 0:00:46]} 33. Nxe4 {[%emt 0:00:06]} Rb6 {[%emt 0:01:01]} 34. Rd2 {[%emt 0:01:26]} Nc6 {[%emt 0:01:02]} 35. Nc5 {[%emt 0:01:07]} Rb2 {[%emt 0:01:41]} 36. Rfd1 {[%emt 0:01:18]} Ra2 {[%emt 0:01:03]} 37. Kf2 {[%emt 0:02:27]} Ra5 {[%emt 0:01:18]} 38. Nb3 {[%emt 0:00:16]} Rxa6 {[%emt 0:00:40]} 39. Nxd4 {[%emt 0:00:02]} Nxd4 {[%emt 0:00:34]} 40. Rxd4 {[%emt 0:00:19]} Rc7 {[%emt 0:00:20]} 41. c4 {[%emt 0:07:04]} Ra2+ {[%emt 0:00:23]} 42. Ke3 {[%emt 0:06:55]} Rxg2 {[%emt 0:01:03]} 43. h4 {[%emt 0:06:44]} Ra2 {[%emt 0:03:35]} 44. Ke4 {[%emt 0:10:30]} Rc5 {[%emt 0:00:58]} 45. Rc1 {[%emt 0:00:55]} Re2+ {[%emt 0:04:31]} 46. Kd3 {[%emt 0:00:17]} Rf2 {[%emt 0:00:39]} 47. Rf4 {[%emt 0:01:19]} Ra2 {[%emt 0:01:34]} 48. Rb1 {[%emt 0:01:28]} Rc7 {[%emt 0:00:39]} 49. Kd4 {[%emt 0:01:15]} a5 {[%emt 0:01:46]} 50. Kd5 {[%emt 0:00:48]} Rd2+ {[%emt 0:00:18]} 0-1

[Event "WSTCC-65 2024"]
[Site "Krakow"]
[Date "2024.07.06"]
[Round "5.9"]
[White "Vilerte, Tamara"]
[Black "Vogt, Lothar"]
[Result "0-1"]
[ECO "E61"]
[WhiteElo "1971"]
[BlackElo "2292"]
[Annotator "TA"]
[PlyCount "36"]
[EventDate "2024.07.01"]
[EventType "team-tourn"]
[EventCountry "POL"]
[SourceTitle "playchess.com"]
[Source "ChessBase"]
[SourceQuality "1"]
[TimeControl "40/5400+30:1800+30"]

{[%evp 18,36,-23,-10,-5,-18,3,-27,-20,-166,-181,-243,-237,-226,-237,-236,-245,-225,-255,-246,-225]} 1. d4 {[%emt 0:00:09]} Nf6 {[%emt 0:00:03]} 2. c4 {[%emt 0:00:33]} g6 {[%emt 0:00:04]} 3. Nc3 {[%emt 0:00:07]} Bg7 {[%emt 0:00:06]} 4. Nf3 {[%emt 0:00:26]} O-O {[%emt 0:00:07]} 5. e4 {[%emt 0:01:07]} d6 {[%emt 0:00:03]} 6. h3 {[%emt 0:01:58]} e5 {[%emt 0:00:54]} 7. dxe5 {[%emt 0:02:31]} dxe5 {[%emt 0:00:09]} 8. Qxd8 {[%emt 0:00:15]} Rxd8 {[%emt 0:00:03][%cal Bf8d8,Bd8d6,Bd6c6,Bc6c8][%mdl 32]} 9. Bg5 {[%emt 0:00:08]} Na6 {[%emt 0:12:31][%cal Bb8a6,Ba6c5,Bc5e4,Be4f2][%mdl 32]} 10. Nd5 {[%emt 0:24:37]} Rd6 {[%emt 0:00:25]} 11. Bxf6 {[%emt 0:07:22]} (11. Nxe5 $2 Nxd5 (11... Nxe4 $2 12. Nf3 $19) 12. cxd5 Bxe5 $19) 11... Bxf6 {[%emt 0:00:05]} 12. O-O-O {[%emt 0:12:13]} (12. Nxf6+ Rxf6 13. O-O-O Nc5 $15) 12... Kg7 {[%emt 0:05:01] Black has an edge.} 13. c5 {[%emt 0:07:12]} Nxc5 $19 {[%emt 0:11:39]} 14. Nxc7 {[%emt 0:06:57] [#]} (14. Bb5 $142 Ne6 (14... Nxe4 $2 15. Nxc7 Bxh3 16. Nxa8 $19) 15. Ba4) 14... Rc6 $1 {[%emt 0:12:06]} (14... Rxd1+ 15. Kxd1 Nxe4 16. Kc1 $11 (16. Nxa8 $2 Nxf2+ 17. Ke1 Nxh1 $19)) 15. Nxa8 {[%emt 0:05:30] Black must now prevent Bb5.} Nxe4+ {[%emt 0:00:25]} 16. Kb1 {[%emt 0:00:04] And now Bb5 would win.} Nxf2 {[%emt 0:00:18]} 17. Bb5 {[%emt 0:07:30] [#]} Bf5+ $1 {[%emt 0:04:25][%mdl 1024] Black has strong compensation.} ({Not} 17... Rc5 18. Rc1 Bf5+ (18... Rxb5 19. Nc7 $15) 19. Ka1 Rxb5 20. Nc7 $11) 18. Ka1 {[%emt 0:00:57]} Rc8 {[%emt 0:00:41] White got outplayed after the opening.   Weighted Error Value: White=0.52/Black=0.01 (flawless) .  Mistake:       	White=2     	---        Inaccurate:     	White=1     	---        OK:         	White=2     	Black=1      Best:        	White=2     	Black=3      Strong:       	---       	Black=2} 0-1

[Event "WSTCC-65 2024"]
[Site "Krakow"]
[Date "2024.07.06"]
[Round "5.10"]
[White "Plachetka, Jan"]
[Black "Westerinen, Heikki M.J."]
[Result "1/2-1/2"]
[ECO "C03"]
[WhiteElo "2289"]
[BlackElo "2221"]
[Annotator "TA"]
[PlyCount "30"]
[EventDate "2024.07.01"]
[EventType "team-tourn"]
[EventCountry "POL"]
[SourceTitle "playchess.com"]
[Source "ChessBase"]
[SourceQuality "1"]
[TimeControl "40/5400+30:1800+30"]

{[%evp 19,30,0,0,0,0,0,0,0,7,0,0,-4,0]} 1. e4 {[%emt 0:00:17]} e6 {[%emt 0:03:03]} 2. d4 {[%emt 0:03:39]} d5 {[%emt 0:00:06]} 3. Nd2 {[%emt 0:00:40]} Be7 {[%emt 0:03:18]} 4. Ngf3 {[%emt 0:01:07]} Nf6 {[%emt 0:00:49]} 5. Bd3 {[%emt 0:00:51]} c5 {[%emt 0:01:34]} 6. e5 {[%emt 0:04:16]} Nfd7 {[%emt 0:00:11]} 7. c3 {[%emt 0:00:07]} Nc6 {[%emt 0:01:12]} 8. O-O {[%emt 0:00:24]} Qb6 {[%emt 0:01:10]} 9. Re1 {[%emt 0:01:43]} cxd4 {[%emt 0:14:35]} 10. cxd4 {[%emt 0:00:06]} Nxd4 {[%emt 0:01:29] The position is equal.} 11. Nxd4 {[%emt 0:00:10]} Qxd4 {[%emt 0:00:15]} 12. Nf3 {[%emt 0:00:13]} Qb6 {[%emt 0:00:51]} 13. Qc2 {[%emt 0:08:15]} Qc5 {[%emt 0:01:31]} 14. Qa4 {[%emt 0:03:56]} Qb4 {[%emt 0:00:26]} 15. Qc2 {[%emt 0:02:09][%cal Oc1d2]} Qc5 {[%emt 0:00:17] An uneventful encounter.   Weighted Error Value: White=0.03 (flawless) /Black=0.02 (flawless) .  OK:         	White=2     	Black=2} 1/2-1/2

[Event "WSTCC-65 2024"]
[Site "Krakow"]
[Date "2024.07.06"]
[Round "5.10"]
[White "Miltner, Arndt"]
[Black "Goldmane, Astra"]
[Result "1/2-1/2"]
[ECO "B22"]
[WhiteElo "2259"]
[BlackElo "1989"]
[Annotator "TA"]
[PlyCount "59"]
[EventDate "2024.07.01"]
[EventType "team-tourn"]
[EventCountry "POL"]
[SourceTitle "playchess.com"]
[Source "ChessBase"]
[SourceQuality "1"]
[TimeControl "40/5400+30:1800+30"]

{[%evp 17,59,-6,-7,-6,-11,-7,-12,-7,-7,0,-8,-11,0,-7,-11,-20,-21,-39,-17,-34,-24,-25,-26,-22,0,0,0,0,0,0,10,0,0,0,0,0,0,0,0,0,0,0,0,-369]} 1. e4 {[%emt 0:00:31]} c5 {[%emt 0:00:13]} 2. c3 {[%emt 0:00:22]} d5 {[%emt 0:02:06]} 3. exd5 {[%emt 0:00:26]} Qxd5 {[%emt 0:00:05]} 4. Nf3 {[%emt 0:00:31]} Nc6 {[%emt 0:07:23]} 5. Na3 {[%emt 0:01:16]} Bg4 {[%emt 0:00:44]} 6. Be2 {[%emt 0:01:32]} Nf6 {[%emt 0:00:59]} 7. O-O {[%emt 0:05:21]} e6 {[%emt 0:01:41]} 8. d4 {[%emt 0:04:50]} cxd4 {[%emt 0:08:09]} 9. Nb5 {[%emt 0:00:32]} Rc8 {[%emt 0:01:06] Und jetzt ...Bxf3 wäre schön.} 10. Nfxd4 {[%emt 0:04:54]} Bxe2 {[%emt 0:01:22]} 11. Qxe2 {[%emt 0:00:15]} Nxd4 {[%emt 0:10:16]} 12. Nxd4 {[%emt 0:00:21]} Be7 {[%emt 0:01:45]} 13. Rd1 {[%emt 0:02:07]} a6 {[%emt 0:03:29] Lässt Nb5 nicht zu} 14. Nb3 {[%emt 0:08:47]} Qc6 {[%emt 0:11:22]} 15. Bg5 {[%emt 0:06:10]} O-O {[%emt 0:04:20]} 16. a4 {[%emt 0:21:10]} h6 {[%emt 0:05:41]} 17. Bf4 {[%emt 0:04:19]} Rfd8 {[%emt 0:05:56]} 18. Nd4 {[%emt 0:06:16]} Qe4 {[%emt 0:12:15]} 19. Qxe4 {[%emt 0:01:09]} Nxe4 {[%emt 0:00:02]} 20. Nb3 {[%emt 0:00:27]} Nc5 {[%emt 0:04:53] Die Stellung ist ausgeglichen.} 21. Nxc5 {[%emt 0:00:45]} Bxc5 {[%emt 0:00:34]} 22. Kf1 {[%emt 0:00:33]} Kf8 {[%emt 0:00:53]} 23. Ke2 {[%emt 0:00:36]} Ke7 {[%emt 0:02:33]} 24. Rxd8 {[%emt 0:09:24]} Rxd8 $11 {[%emt 0:00:21][%mdl 4096] Endspiel. KRB-KRB} 25. a5 {[%emt 0:03:55]} g5 {[%emt 0:04:35]} 26. Be3 {[%emt 0:01:05]} Bxe3 {[%emt 0:00:49]} 27. Kxe3 {[%emt 0:00:27]} Rd5 {[%emt 0:00:21]} 28. c4 {[%emt 0:01:33]} Re5+ {[%emt 0:00:25]} 29. Kd3 Rf5 30. Ra2 $2 {[%mdl 40960] Gewichteter Fehlerwert: Weiß=0.04 (makellos) /Schwarz=0.02 (makellos) .  Verlustzug:     	Weiß=1     	---        OK:         	Weiß=8     	Schwarz=11   . Ein unerwartetes Ergebnis.} (30. Ke3 $11 {und Weiss steht sicher.}) 1/2-1/2

[Event "WSTCC-65 2024"]
[Site "Krakow"]
[Date "2024.07.06"]
[Round "5.10"]
[White "Gasik, Piotr"]
[Black "Cordes, Steffen"]
[Result "1-0"]
[ECO "A25"]
[WhiteElo "1954"]
[BlackElo "1989"]
[Annotator "NA RC"]
[PlyCount "73"]
[EventDate "2024.07.01"]
[EventType "team-tourn"]
[EventCountry "POL"]
[SourceTitle "playchess.com"]
[Source "ChessBase"]
[SourceQuality "1"]
[TimeControl "40/5400+30:1800+30"]

1. c4 {[%emt 0:00:01]} e5 {[%emt 0:00:06]} 2. Nc3 {[%emt 0:00:06]} Nc6 {[%emt 0:00:13]} 3. g3 {[%emt 0:00:07]} Nf6 {[%emt 0:00:32]} 4. Bg2 {[%emt 0:00:09]} Be7 {[%emt 0:00:39]} 5. Nf3 {[%emt 0:00:08]} d5 {[%emt 0:00:13]} 6. cxd5 {[%emt 0:01:19]} Nxd5 {[%emt 0:00:14]} 7. Nxe5 {[%emt 0:02:13]} Nxe5 {[%emt 0:09:01]} 8. Nxd5 {[%emt 0:00:47]} Bd6 {[%emt 0:00:44]} 9. d4 {[%emt 0:03:03]} Ng6 {[%emt 0:05:08]} 10. O-O {[%emt 0:00:10]} O-O {[%emt 0:01:32]} 11. e4 {[%emt 0:02:17]} c6 {[%emt 0:03:42]} 12. Nc3 {[%emt 0:00:09]} Rb8 {[%emt 0:12:38]} 13. Be3 {[%emt 0:00:43]} Re8 {[%emt 0:02:00]} 14. Qc2 {[%emt 0:00:37]} Qa5 {[%emt 0:02:14]} 15. f4 {[%emt 0:05:09]} f5 {[%emt 0:03:53]} 16. e5 {[%emt 0:01:37]} Bf8 {[%emt 0:01:15]} 17. a3 {[%emt 0:03:01]} Ne7 {[%emt 0:03:50]} 18. b4 {[%emt 0:00:40]} Qd8 {[%emt 0:00:15]} 19. Qb3+ {[%emt 0:01:03]} Kh8 {[%emt 0:02:43]} 20. Rfd1 {[%emt 0:00:29]} b6 {[%emt 0:03:36]} 21. b5 {[%emt 0:01:50]} Bb7 {[%emt 0:00:55]} 22. bxc6 {[%emt 0:06:00]} Nxc6 {[%emt 0:01:02]} 23. d5 {[%emt 0:00:21]} Na5 {[%emt 0:00:17]} 24. Qa2 {[%emt 0:00:59]} Rc8 {[%emt 0:00:17]} 25. Nb5 {[%emt 0:07:46]} a6 {[%emt 0:04:54]} 26. d6 {[%emt 0:18:31]} axb5 {[%emt 0:06:32]} 27. d7 {[%emt 0:00:07]} Bxg2 {[%emt 0:03:52]} 28. dxc8=Q {[%emt 0:06:29]} Qxc8 {[%emt 0:00:19]} 29. Qxg2 {[%emt 0:00:10]} Nc4 {[%emt 0:01:22]} 30. Bf2 {[%emt 0:01:07]} Bxa3 {[%emt 0:05:41]} 31. Qd5 Bc5 32. Ra7 {[%emt 0:09:08]} Rg8 {[%emt 0:04:32]} 33. Bxc5 {[%emt 0:04:03]} bxc5 {[%emt 0:00:32]} 34. Qd7 {[%emt 0:01:59]} Ne3 {[%emt 0:01:19]} 35. Qxc8 {[%emt 0:00:55]} Rxc8 {[%emt 0:00:07]} 36. Rdd7 {[%emt 0:00:11]} c4 {[%emt 0:04:24]} 37. e6 {[%emt 0:00:15]} 1-0

[Event "WSTCC-65 2024"]
[Site "Krakow"]
[Date "2024.07.06"]
[Round "5.11"]
[White "Hentunen, Asko"]
[Black "Lanc, Alois"]
[Result "1/2-1/2"]
[ECO "A36"]
[WhiteElo "2207"]
[BlackElo "2256"]
[Annotator "TA"]
[PlyCount "89"]
[EventDate "2024.07.01"]
[EventType "team-tourn"]
[EventCountry "POL"]
[SourceTitle "playchess.com"]
[Source "ChessBase"]
[SourceQuality "1"]
[TimeControl "40/5400+30:1800+30"]

{[%evp 9,89,-6,2,-1,7,-8,7,6,5,5,15,20,10,8,25,29,27,50,43,31,60,67,66,37,39,0,0,-35,-33,-74,-72,-91,-89,-97,-89,-95,-53,-118,-128,-107,-100,-116,-112,-111,-112,-112,-107,-275,-279,-310,-187,-291,-289,-311,-306,-293,-301,-470,-390,-477,-460,-504,-474,-624,-609,-563,-563,-527,-316,-285,-266,-260,-263,-228,-142,-129,-130,-138,-85,-84,2,-71]} 1. c4 {[%emt 0:00:06]} g6 {[%emt 0:00:43]} 2. g3 {[%emt 0:00:09]} Bg7 {[%emt 0:00:07]} 3. Bg2 {[%emt 0:00:04]} c5 {[%emt 0:04:43]} 4. Nc3 {[%emt 0:00:06]} Nc6 {[%emt 0:00:14]} 5. Nh3 {[%emt 0:00:33]} e5 {[%emt 0:01:05]} 6. O-O {[%emt 0:00:25]} d6 {[%emt 0:03:06]} 7. d3 {[%emt 0:00:38]} h6 {[%emt 0:11:59]} 8. f4 {[%emt 0:01:29]} Nge7 {[%emt 0:01:02]} 9. a3 {[%emt 0:07:08][%cal Ba2a3,Ba3b4,Bb4b5][%mdl 32]} f5 {[%emt 0:08:31]} 10. Rb1 {[%emt 0:01:46]} Be6 {[%emt 0:06:07]} 11. Nd5 {[%emt 0:04:10]} O-O {[%emt 0:09:06]} 12. b4 {[%emt 0:02:23]} cxb4 {[%emt 0:01:19]} 13. axb4 {[%emt 0:00:07]} Bf7 {[%emt 0:03:48]} 14. Nxe7+ {[%emt 0:08:33]} Qxe7 {[%emt 0:01:28]} 15. b5 {[%emt 0:01:52]} Nd4 {[%emt 0:01:08]} 16. Re1 {[%emt 0:06:01]} Qc7 {[%emt 0:05:47]} 17. fxe5 {[%emt 0:09:42]} (17. e3 $5 Ne6 $8 18. Ba3 $11) 17... dxe5 {[%emt 0:00:22]} 18. Be3 {[%emt 0:00:09]} Rad8 {[%emt 0:02:32]} 19. b6 {[%emt 0:12:08]} axb6 {[%emt 0:00:18]} 20. Bxd4 {[%emt 0:00:43]} Rxd4 {[%emt 0:00:29]} 21. Qb3 {[%emt 0:04:49]} Rd6 {[%emt 0:01:33]} 22. Nf2 {[%emt 0:01:09]} Re8 {[%emt 0:04:30]} 23. Qb5 {[%emt 0:05:40] [#]} (23. Bd5 $15) 23... e4 $1 $17 {[%emt 0:06:55][%mdl 512]} 24. dxe4 {[%emt 0:04:10] White is weak on the dark squares} Qxc4 {[%emt 0:00:18]} 25. exf5 {[%emt 0:05:46] [#]} Qxb5 $1 {[%emt 0:01:29]} 26. Rxb5 {[%emt 0:00:06] [#]} Bc4 $1 $36 {[%emt 0:00:14][%csl LRb5,LRe2][%mdl 2048] Black is on the roll.} 27. Rbb1 {[%emt 0:00:47]} gxf5 {[%emt 0:06:36]} ({Much worse is} 27... Bxe2 $6 28. f6 Bxf6 (28... Rxf6 29. Ne4 $16) 29. Ne4 (29. Bxb7 $2 {loses.} Rd2 $19) 29... Rxe4 (29... Bd4+ 30. Kh1 $14) 30. Bxe4 $11) 28. Kf1 $2 {[%emt 0:04:26]} (28. Nd3 $17) 28... Bc3 $19 {[%emt 0:03:27]} 29. Rec1 {[%emt 0:00:33]} Bxe2+ {[%emt 0:02:53] A strong pair of Bishops.} 30. Kg1 {[%emt 0:00:05]} Bd4 {[%emt 0:00:46]} 31. Re1 {[%emt 0:02:20]} Kf8 {[%emt 0:03:48][%cal Of5f4] Strongly threatening ...f4!} 32. Bf1 {[%emt 0:01:57]} Rde6 {[%emt 0:02:51]} 33. Bh3 {[%emt 0:05:50]} (33. Rb3 $142) 33... Re5 {[%emt 0:01:30]} 34. Rbc1 {[%emt 0:03:40]} Bc5 {[%emt 0:02:44]} 35. Rb1 {[%emt 0:01:06]} b5 {[%emt 0:01:06] ...Bc4 would now be deadly.} 36. Bg2 {[%emt 0:01:09]} Bc4 {[%emt 0:01:14]} 37. Rxe5 {[%emt 0:00:48]} Rxe5 {[%emt 0:00:09]} 38. Bf3 {[%emt 0:03:22] Against Re2} Bd5 {[%emt 0:02:40]} 39. Kg2 {[%emt 0:00:54]} Bxf3+ {[%emt 0:00:28]} 40. Kxf3 {[%emt 0:00:05] KRB-KRN} Re3+ {[%emt 0:00:13]} 41. Kf4 {[%emt 0:30:35]} Ra3 {[%emt 0:07:08] Threatens to win with ...Kf7.} 42. Nh3 {[%emt 0:00:00]} b4 {[%emt 0:00:22]} 43. Kxf5 {[%emt 0:00:00]} Ra2 {[%emt 0:01:17]} (43... Ke7 $142 {aiming for ...Kd6.} 44. Ke5 Ra2) 44. Nf4 $17 {[%emt 0:00:00]} Be7 {[%emt 0:04:11]} (44... Kf7 $17 45. Nd3 Be7) 45. Ke4 {Weighted Error Value: White=0.29 (precise) /Black=0.20 (precise) .  Loses game:     	White=1     	---        Mistake:       	White=3     	Black=2      Inaccurate:     	White=6     	Black=4      OK:         	White=12    	Black=13     Best:        	White=3     	Black=3      Strong:       	---       	Black=2} (45. Ng6+ $11 {keeps the balance.} Kf7 46. Nxe7 Ra5+ 47. Ke4 Kxe7 48. Rxb4) 1/2-1/2